[Event "DVM U14 2024"]
[Site "Heidelberg"]
[Date "2024.12.27"]
[Round "1"]
[White "Pflug, Anton"]
[Black "Mosch, Cornelius"]
[Result "1-0"]
[ECO "C55"]
[WhiteElo "1812"]
[BlackElo "1405"]
[Annotator "NA RC"]
[PlyCount "69"]
[EventDate "2024.12.23"]
[EventType "team-tourn"]
[EventRounds "7"]
[EventCountry "GER"]
[SourceTitle "playchess.com"]
[Source "ChessBase"]
[SourceQuality "1"]
[TimeControl "40/5400+30:1800+30"]

1. e4 {[%emt 0:00:02]} e5 {[%emt 0:00:06]} 2. Nf3 {[%emt 0:00:25]} Nc6 {[%emt 0:00:04]} 3. Bc4 {[%emt 0:00:07]} Nf6 {[%emt 0:01:28]} 4. d3 {[%emt 0:00:10]} h6 {[%emt 0:00:10]} 5. c3 {[%emt 0:02:56]} d5 {[%emt 0:00:28]} 6. exd5 {[%emt 0:00:28]} Nxd5 {[%emt 0:00:05]} 7. Nbd2 {[%emt 0:01:41]} Be7 {[%emt 0:16:55]} 8. O-O {[%emt 0:06:03]} O-O {[%emt 0:02:27]} 9. Re1 {[%emt 0:04:44]} Bf6 {[%emt 0:00:12]} 10. Ne4 {[%emt 0:01:01]} Bg4 {[%emt 0:00:47]} 11. Bxh6 {[%emt 0:19:47]} Nb6 {[%emt 0:01:30]} 12. Be3 {[%emt 0:03:42]} Nxc4 {[%emt 0:00:45]} 13. dxc4 {[%emt 0:00:08]} Qxd1 {[%emt 0:00:22]} 14. Nxf6+ {[%emt 0:01:11]} gxf6 {[%emt 0:00:09]} 15. Raxd1 {[%emt 0:00:19]} e4 {[%emt 0:00:05]} 16. h3 {[%emt 0:00:06]} Bh5 {[%emt 0:01:10]} 17. g4 {[%emt 0:00:07]} exf3 {[%emt 0:00:09]} 18. gxh5 {[%emt 0:00:05]} Kh7 {[%emt 0:00:12]} 19. Rd7 {[%emt 0:03:26]} Ne5 {[%emt 0:19:14]} 20. Rxc7 {[%emt 0:03:33]} b6 {[%emt 0:01:12]} 21. Bd4 {[%emt 0:03:12]} Nd3 {[%emt 0:00:53]} 22. Re3 {[%emt 0:00:29]} Rg8+ {[%emt 0:00:27]} 23. Kf1 {[%emt 0:00:17]} Nxb2 {[%emt 0:01:08]} 24. Rxf3 {[%emt 0:01:10]} Rgf8 {[%emt 0:03:43]} 25. Rxf6 {[%emt 0:03:40]} Nd3 {[%emt 0:14:41]} 26. Ke2 {[%emt 0:04:28]} Nc5 {[%emt 0:01:31]} 27. Bxc5 {[%emt 0:06:13]} bxc5 {[%emt 0:00:10]} 28. Rxc5 {[%emt 0:00:06]} Rfe8+ {[%emt 0:00:20]} 29. Kf3 {[%emt 0:00:15]} Kg7 {[%emt 0:00:09]} 30. Rf4 {[%emt 0:00:45]} Rad8 {[%emt 0:00:16]} 31. Rd5 {[%emt 0:00:08]} Rc8 {[%emt 0:01:23]} 32. Rd7 {[%emt 0:00:30]} a5 {[%emt 0:01:22]} 33. Rfxf7+ {[%emt 0:01:27]} Kg8 {[%emt 0:00:52]} 34. Rg7+ {[%emt 0:01:53]} Kh8 {[%emt 0:03:13]} 35. Rh7+ {[%emt 0:00:33]} 1-0

[Event "DVM U14 2024"]
[Site "Heidelberg"]
[Date "2024.12.27"]
[Round "1"]
[White "Ollhoff, Hannes"]
[Black "Mohylnyi, Stepan"]
[Result "0-1"]
[ECO "D79"]
[WhiteElo "1801"]
[BlackElo "2180"]
[Annotator "RC"]
[PlyCount "74"]
[EventDate "2024.12.23"]
[EventType "team-tourn"]
[EventRounds "7"]
[EventCountry "GER"]
[SourceTitle "playchess.com"]
[Source "ChessBase"]
[SourceQuality "1"]
[TimeControl "40/5400+30:1800+30"]

1. d4 {[%emt 0:00:12]} Nf6 {[%emt 0:00:04]} 2. Nf3 {[%emt 0:00:24]} g6 {[%emt 0:00:05]} 3. g3 {[%emt 0:00:24]} Bg7 {[%emt 0:00:05]} 4. Bg2 {[%emt 0:00:22]} O-O {[%emt 0:00:07]} 5. O-O {[%emt 0:00:40]} d5 {[%emt 0:00:03]} 6. c4 {[%emt 0:01:59]} c6 {[%emt 0:00:05]} 7. cxd5 {[%emt 0:01:22]} cxd5 {[%emt 0:00:04]} 8. Nc3 {[%emt 0:00:10]} Nc6 {[%emt 0:00:12]} 9. Bf4 {[%emt 0:03:56]} Ne4 {[%emt 0:05:00]} 10. Ne5 {[%emt 0:08:28]} Nxe5 {[%emt 0:05:23]} 11. Bxe5 {[%emt 0:04:14]} Nxc3 {[%emt 0:02:03]} 12. bxc3 {[%emt 0:00:12]} Bxe5 {[%emt 0:00:03]} 13. dxe5 {[%emt 0:00:07]} Be6 {[%emt 0:00:07]} 14. Qd4 {[%emt 0:13:36]} Qa5 {[%emt 0:00:46]} 15. Qb4 {[%emt 0:04:18]} Qc7 {[%emt 0:02:51]} 16. f4 {[%emt 0:10:02]} Rac8 {[%emt 0:00:49]} 17. Rfd1 {[%emt 0:07:52]} Rfd8 {[%emt 0:08:50]} 18. Rac1 {[%emt 0:07:14]} a5 {[%emt 0:07:42]} 19. Qd4 {[%emt 0:04:59]} b5 {[%emt 0:06:37]} 20. Rb1 {[%emt 0:12:00]} Qb8 {[%emt 0:00:58]} 21. Qd2 {[%emt 0:04:44]} Bf5 {[%emt 0:01:42]} 22. Rb2 {[%emt 0:01:24]} e6 {[%emt 0:00:08]} 23. Bf1 {[%emt 0:04:03]} Rc5 {[%emt 0:02:25]} 24. e3 {[%emt 0:01:53]} Rdc8 {[%emt 0:01:07]} 25. a4 {[%emt 0:04:30]} b4 {[%emt 0:00:42]} 26. cxb4 {[%emt 0:00:24]} Rc2 {[%emt 0:00:04]} 27. Rxc2 {[%emt 0:01:24]} Rxc2 {[%emt 0:00:05]} 28. Qd4 {[%emt 0:00:21]} Qxb4 {[%emt 0:02:46]} 29. Qxb4 {[%emt 0:01:48]} axb4 {[%emt 0:00:01]} 30. Bd3 {[%emt 0:00:08]} b3 {[%emt 0:01:38]} 31. Bxc2 {[%emt 0:02:16]} Bxc2 {[%emt 0:00:02]} 32. Re1 {[%emt 0:00:27]} b2 {[%emt 0:00:03]} 33. a5 {[%emt 0:00:04]} b1=Q {[%emt 0:00:07]} 34. Rxb1 {[%emt 0:00:05]} Bxb1 {[%emt 0:00:03]} 35. a6 {[%emt 0:00:04]} Be4 {[%emt 0:00:02]} 36. a7 {[%emt 0:00:14]} d4 {[%emt 0:00:03]} 37. exd4 {[%emt 0:00:04]} Kf8 {[%emt 0:00:10]} 0-1

[Event "DVM U14 2024"]
[Site "Heidelberg"]
[Date "2024.12.27"]
[Round "1"]
[White "Fridlin, Daniel"]
[Black "Meusel, Theodor"]
[Result "0-1"]
[ECO "C07"]
[WhiteElo "1789"]
[BlackElo "1608"]
[Annotator "NA RC"]
[PlyCount "134"]
[EventDate "2024.12.23"]
[EventType "team-tourn"]
[EventRounds "7"]
[EventCountry "GER"]
[SourceTitle "playchess.com"]
[Source "ChessBase"]
[SourceQuality "1"]
[TimeControl "40/5400+30:1800+30"]

1. e4 {[%emt 0:00:05]} e6 {[%emt 0:00:10]} 2. d4 {[%emt 0:00:27]} d5 {[%emt 0:00:06]} 3. Nd2 {[%emt 0:00:43]} c5 {[%emt 0:00:07]} 4. exd5 {[%emt 0:01:42]} Qxd5 {[%emt 0:00:09]} 5. Ngf3 {[%emt 0:01:33]} Nc6 {[%emt 0:00:08]} 6. Bc4 {[%emt 0:02:19]} Qd8 {[%emt 0:00:08]} 7. O-O {[%emt 0:02:46]} cxd4 {[%emt 0:00:10]} 8. Nb3 {[%emt 0:00:21]} Nf6 {[%emt 0:00:31]} 9. Nbxd4 {[%emt 0:01:50]} Nxd4 {[%emt 0:00:10]} 10. Nxd4 {[%emt 0:00:14]} Bc5 {[%emt 0:01:06]} 11. c3 {[%emt 0:11:35]} O-O {[%emt 0:00:57]} 12. Be3 {[%emt 0:04:36]} b6 {[%emt 0:11:20]} 13. Qf3 {[%emt 0:10:24]} Bd7 {[%emt 0:09:33]} 14. Rad1 {[%emt 0:01:43]} Qc7 {[%emt 0:03:27]} 15. Bd3 {[%emt 0:04:27]} Bxd4 {[%emt 0:07:08]} 16. cxd4 {[%emt 0:05:04]} Bc6 {[%emt 0:03:41]} 17. Qh3 {[%emt 0:03:31]} h6 {[%emt 0:04:20]} 18. Rc1 {[%emt 0:01:09]} Qb7 {[%emt 0:03:12]} 19. f3 {[%emt 0:07:26]} Rac8 {[%emt 0:10:08]} 20. g4 {[%emt 0:05:14]} Rfd8 {[%emt 0:06:29]} 21. g5 {[%emt 0:02:31]} hxg5 {[%emt 0:01:01]} 22. Bxg5 {[%emt 0:00:24]} Rxd4 {[%emt 0:04:58]} 23. Bxf6 {[%emt 0:03:39]} gxf6 {[%emt 0:01:27]} 24. Bh7+ {[%emt 0:04:27]} Kf8 {[%emt 0:00:09]} 25. Rf2 {[%emt 0:01:06]} Ke7 {[%emt 0:01:53]} 26. Rfc2 {[%emt 0:01:20]} Rdd8 {[%emt 0:04:56]} 27. f4 {[%emt 0:01:58]} Bd5 {[%emt 0:01:16]} 28. Qa3+ {[%emt 0:02:01]} Ke8 {[%emt 0:01:27]} 29. Bd3 {[%emt 0:00:45]} Rxc2 {[%emt 0:02:01]} 30. Rxc2 {[%emt 0:00:10]} Qe7 {[%emt 0:00:43]} 31. Bb5+ {[%emt 0:00:26]} Kf8 {[%emt 0:00:01]} 32. Qh3 {[%emt 0:00:18]} Qd6 {[%emt 0:01:22]} 33. Qc3 {[%emt 0:03:33]} Be4 {[%emt 0:03:37]} 34. Rc1 {[%emt 0:03:00]} Qxf4 {[%emt 0:02:28]} 35. Bf1 {[%emt 0:05:50]} Rd2 {[%emt 0:01:25]} 36. Qh3 {[%emt 0:01:07]} Qg5+ {[%emt 0:01:25]} 37. Qg3 {[%emt 0:00:06]} Qxg3+ {[%emt 0:00:41]} 38. hxg3 {[%emt 0:00:05]} Rxb2 {[%emt 0:00:29]} 39. a3 {[%emt 0:00:33]} Rc2 {[%emt 0:00:08]} 40. Re1 {[%emt 0:00:18]} Bd5 {[%emt 0:00:34]} 41. Re3 {[%emt 0:30:14]} Ke7 {[%emt 0:32:42]} 42. Be2 {[%emt 0:00:14]} Kd6 {[%emt 0:00:22]} 43. g4 {[%emt 0:00:24]} e5 {[%emt 0:00:57]} 44. Kf1 {[%emt 0:00:13]} Bc4 {[%emt 0:00:38]} 45. Bxc4 {[%emt 0:00:19]} Rxc4 {[%emt 0:00:02]} 46. Rg3 {[%emt 0:00:08]} b5 {[%emt 0:00:42]} 47. Ke2 {[%emt 0:00:07]} e4 {[%emt 0:00:48]} 48. Re3 {[%emt 0:01:12]} Ke5 {[%emt 0:00:17]} 49. Rb3 {[%emt 0:00:08]} a6 {[%emt 0:00:19]} 50. Ke3 {[%emt 0:00:23]} f5 {[%emt 0:00:21]} 51. gxf5 {[%emt 0:00:07]} Kxf5 {[%emt 0:00:02]} 52. Ke2 {[%emt 0:00:29]} Kg4 {[%emt 0:00:55]} 53. Rb1 {[%emt 0:00:15]} Rc3 {[%emt 0:00:19]} 54. Rg1+ {[%emt 0:00:13]} Rg3 {[%emt 0:00:22]} 55. Ra1 {[%emt 0:00:04]} f5 {[%emt 0:00:30]} 56. a4 {[%emt 0:00:07]} bxa4 {[%emt 0:01:00]} 57. Rxa4 {[%emt 0:00:08]} Kf4 {[%emt 0:00:38]} 58. Rxa6 {[%emt 0:00:13]} Rg2+ {[%emt 0:00:17]} 59. Kf1 {[%emt 0:00:09]} Kf3 {[%emt 0:01:47]} 60. Ra3+ {[%emt 0:00:31]} e3 {[%emt 0:00:06]} 61. Rxe3+ {[%emt 0:00:17]} Kxe3 {[%emt 0:00:09]} 62. Kxg2 {[%emt 0:00:06]} f4 {[%emt 0:00:42]} 63. Kf1 {[%emt 0:00:56]} Kf3 {[%emt 0:00:05]} 64. Kg1 {[%emt 0:00:06]} Ke2 {[%emt 0:00:03]} 65. Kg2 {[%emt 0:00:05]} f3+ {[%emt 0:00:04]} 66. Kg1 {[%emt 0:00:05]} f2+ {[%emt 0:00:03]} 67. Kh2 {[%emt 0:00:04]} f1=Q {[%emt 0:00:09]} 0-1

[Event "DVM U14 2024"]
[Site "Heidelberg"]
[Date "2024.12.27"]
[Round "1"]
[White "Botschek, Marius"]
[Black "Steinbrenner, Peter"]
[Result "0-1"]
[ECO "B23"]
[WhiteElo "1788"]
[BlackElo "1946"]
[Annotator "NA RC"]
[PlyCount "94"]
[EventDate "2024.12.23"]
[EventType "team-tourn"]
[EventRounds "7"]
[EventCountry "GER"]
[SourceTitle "playchess.com"]
[Source "ChessBase"]
[SourceQuality "1"]
[TimeControl "40/5400+30:1800+30"]

1. e4 {[%emt 0:00:03]} c5 {[%emt 0:00:10]} 2. Nc3 {[%emt 0:00:04]} a6 {[%emt 0:00:06]} 3. f4 {[%emt 0:00:08]} b5 {[%emt 0:00:09]} 4. Nf3 {[%emt 0:00:20]} Bb7 {[%emt 0:00:11]} 5. d4 {[%emt 0:00:11]} e6 {[%emt 0:00:54]} 6. d5 {[%emt 0:10:58]} b4 {[%emt 0:03:59]} 7. Na4 {[%emt 0:24:08]} exd5 {[%emt 0:11:58]} 8. exd5 {[%emt 0:00:15]} d6 {[%emt 0:01:11]} 9. c4 {[%emt 0:06:07]} Be7 {[%emt 0:05:22]} 10. Bd3 {[%emt 0:02:19]} Bf6 {[%emt 0:06:38]} 11. O-O {[%emt 0:00:55]} Ne7 {[%emt 0:01:49]} 12. Rb1 {[%emt 0:03:53]} Nd7 {[%emt 0:04:36]} 13. b3 {[%emt 0:04:14]} Nb6 {[%emt 0:01:21]} 14. Nxb6 {[%emt 0:02:24]} Qxb6 {[%emt 0:00:16]} 15. Bb2 {[%emt 0:00:19]} O-O-O {[%emt 0:11:34]} 16. Kh1 {[%emt 0:09:10]} Rhe8 {[%emt 0:12:32]} 17. Ng5 {[%emt 0:04:14]} Bxb2 {[%emt 0:06:24]} 18. Rxb2 {[%emt 0:00:30]} h6 {[%emt 0:02:24]} 19. Nf3 {[%emt 0:09:57]} Ng8 {[%emt 0:05:14]} 20. Re2 {[%emt 0:02:06]} Nf6 {[%emt 0:03:33]} 21. Rfe1 {[%emt 0:01:44]} Qc7 {[%emt 0:02:17]} 22. Qc2 {[%emt 0:02:14]} Kb8 {[%emt 0:05:13]} 23. Qd2 {[%emt 0:03:08]} Qd7 {[%emt 0:02:37]} 24. Kg1 {[%emt 0:04:46]} Rxe2 {[%emt 0:03:19]} 25. Rxe2 {[%emt 0:00:19]} Re8 {[%emt 0:01:36]} 26. Qe1 {[%emt 0:01:18]} Rxe2 {[%emt 0:01:29]} 27. Qxe2 {[%emt 0:00:08]} Qg4 {[%emt 0:00:53]} 28. g3 {[%emt 0:02:35]} g5 {[%emt 0:02:32]} 29. fxg5 {[%emt 0:01:47]} hxg5 {[%emt 0:00:06]} 30. Qe3 {[%emt 0:00:44]} Ka7 {[%emt 0:01:42]} 31. Nxg5 {[%emt 0:01:35]} Qd1+ {[%emt 0:00:34]} 32. Bf1 {[%emt 0:00:30]} Ng4 {[%emt 0:01:22]} 33. Qf4 {[%emt 0:02:09]} f6 {[%emt 0:01:16]} 34. Ne6 {[%emt 0:01:00]} Ne5 {[%emt 0:00:32]} 35. Kg2 {[%emt 0:00:40]} Bxd5+ {[%emt 0:00:43]} 36. cxd5 {[%emt 0:00:22]} Qxd5+ {[%emt 0:00:04]} 37. Kg1 {[%emt 0:00:16]} Qxe6 {[%emt 0:00:04]} 38. Bg2 {[%emt 0:01:07]} d5 {[%emt 0:01:47]} 39. h3 {[%emt 0:00:15]} Kb6 {[%emt 0:00:41]} 40. Qe3 {[%emt 0:00:25]} Qd6 {[%emt 0:00:38]} 41. Qd2 {[%emt 0:30:56]} d4 {[%emt 0:30:35]} 42. h4 {[%emt 0:00:00]} d3 {[%emt 0:00:00]} 43. h5 {[%emt 0:00:00]} Qd4+ {[%emt 0:00:00]} 44. Kf1 {[%emt 0:00:00]} Ng4 {[%emt 0:00:00]} 45. Ke1 {[%emt 0:00:00]} Qa1+ {[%emt 0:00:00]} 46. Qd1 {[%emt 0:00:00]} Qe5+ {[%emt 0:00:00]} 47. Kd2 {[%emt 0:00:00]} Qe3# {[%emt 0:00:00]} 0-1

[Event "DVM U14 2024"]
[Site "Heidelberg"]
[Date "2024.12.27"]
[Round "1"]
[White "Meijers, Janis"]
[Black "Li, Yunqi"]
[Result "0-1"]
[ECO "E32"]
[WhiteElo "1783"]
[BlackElo "1990"]
[Annotator "RC"]
[PlyCount "34"]
[EventDate "2024.12.23"]
[EventType "team-tourn"]
[EventRounds "7"]
[EventCountry "GER"]
[SourceTitle "playchess.com"]
[Source "ChessBase"]
[SourceQuality "1"]
[TimeControl "40/5400+30:1800+30"]

1. d4 {[%emt 0:00:04]} Nf6 {[%emt 0:00:05]} 2. c4 {[%emt 0:00:07]} e6 {[%emt 0:00:09]} 3. Nc3 {[%emt 0:00:06]} Bb4 {[%emt 0:00:06]} 4. Qc2 {[%emt 0:00:07]} O-O {[%emt 0:00:18]} 5. e4 {[%emt 0:00:28]} d5 {[%emt 0:00:25]} 6. e5 {[%emt 0:02:04]} Ne4 {[%emt 0:01:02]} 7. a3 {[%emt 0:01:40]} Bxc3+ {[%emt 0:01:54]} 8. bxc3 {[%emt 0:00:11]} c5 {[%emt 0:00:11]} 9. Bd3 {[%emt 0:02:01]} cxd4 {[%emt 0:04:18]} 10. cxd4 {[%emt 0:04:09]} Nc6 {[%emt 0:06:33]} 11. Ne2 {[%emt 0:01:57]} Qa5+ {[%emt 0:02:01]} 12. Kf1 {[%emt 0:00:53]} f5 {[%emt 0:12:17]} 13. f3 {[%emt 0:04:21]} Bd7 {[%emt 0:03:44]} 14. Rb1 {[%emt 0:03:50]} Nd8 {[%emt 0:06:05]} 15. cxd5 {[%emt 0:10:00]} Rc8 {[%emt 0:06:24]} 16. Qb2 {[%emt 0:01:40]} exd5 {[%emt 0:02:03]} 17. Kg1 {[%emt 0:02:44]} Qe1# {[%emt 0:03:18]} 0-1

[Event "DVM U14 2024"]
[Site "Heidelberg"]
[Date "2024.12.27"]
[Round "1"]
[White "Ramming, Moritz"]
[Black "Madel, Luca"]
[Result "1/2-1/2"]
[ECO "C10"]
[WhiteElo "1769"]
[BlackElo "1657"]
[Annotator "NA RC"]
[PlyCount "95"]
[EventDate "2024.12.23"]
[EventType "team-tourn"]
[EventRounds "7"]
[EventCountry "GER"]
[SourceTitle "playchess.com"]
[Source "ChessBase"]
[SourceQuality "1"]
[TimeControl "40/5400+30:1800+30"]

1. e4 {[%emt 0:00:06]} e6 {[%emt 0:00:20]} 2. d4 {[%emt 0:00:08]} d5 {[%emt 0:00:31]} 3. Nd2 {[%emt 0:00:06]} dxe4 {[%emt 0:00:10]} 4. Nxe4 {[%emt 0:00:08]} Nd7 {[%emt 0:00:51]} 5. Be3 {[%emt 0:01:16]} Ngf6 {[%emt 0:00:36]} 6. Nxf6+ {[%emt 0:00:09]} Nxf6 {[%emt 0:00:23]} 7. Nf3 {[%emt 0:00:17]} Be7 {[%emt 0:00:26]} 8. Be2 {[%emt 0:01:31]} O-O {[%emt 0:01:58]} 9. O-O {[%emt 0:01:12]} b6 {[%emt 0:01:20]} 10. Ne5 {[%emt 0:05:05]} Bb7 {[%emt 0:02:47]} 11. c4 {[%emt 0:01:48]} Nd7 {[%emt 0:03:17]} 12. Bf3 {[%emt 0:04:05]} Nxe5 {[%emt 0:05:47]} 13. Bxb7 {[%emt 0:01:12]} Rb8 {[%emt 0:00:01]} 14. Ba6 {[%emt 0:02:13]} Nd7 {[%emt 0:00:56]} 15. Qd2 {[%emt 0:04:03]} e5 {[%emt 0:05:02]} 16. Rad1 {[%emt 0:02:07]} exd4 {[%emt 0:02:20]} 17. Bxd4 {[%emt 0:00:39]} Bd6 {[%emt 0:14:47]} 18. Qc3 {[%emt 0:03:50]} f6 {[%emt 0:01:50]} 19. b4 {[%emt 0:02:23]} c5 {[%emt 0:04:40]} 20. Be3 {[%emt 0:01:54]} cxb4 {[%emt 0:05:07]} 21. Qd2 {[%emt 0:08:04]} Nc5 {[%emt 0:01:01]} 22. Bb5 {[%emt 0:00:57]} Be7 {[%emt 0:02:06]} 23. Qxb4 {[%emt 0:01:55]} Qc7 {[%emt 0:01:15]} 24. Qb1 {[%emt 0:02:09]} Rfd8 {[%emt 0:01:51]} 25. Qf5 {[%emt 0:02:53]} Rxd1 {[%emt 0:06:14]} 26. Rxd1 {[%emt 0:00:27]} Rd8 {[%emt 0:00:12]} 27. Rd5 {[%emt 0:01:45]} g6 {[%emt 0:03:49]} 28. Qf3 {[%emt 0:01:31]} Rxd5 {[%emt 0:03:14]} 29. cxd5 {[%emt 0:01:28]} Kg7 {[%emt 0:01:07]} 30. g3 {[%emt 0:02:32]} Bd6 {[%emt 0:01:15]} 31. h4 {[%emt 0:00:31]} h5 {[%emt 0:03:11]} 32. g4 {[%emt 0:03:33]} hxg4 {[%emt 0:01:35]} 33. Qxg4 {[%emt 0:00:28]} Qe7 {[%emt 0:01:55]} 34. h5 {[%emt 0:03:26]} Qe4 {[%emt 0:02:09]} 35. Qh3 {[%emt 0:08:45]} gxh5 {[%emt 0:01:19]} 36. Qxh5 {[%emt 0:04:06]} Qg6+ {[%emt 0:00:17]} 37. Qxg6+ {[%emt 0:00:05]} Kxg6 {[%emt 0:00:02]} 38. Kg2 {[%emt 0:00:58]} a6 {[%emt 0:01:00]} 39. Bxc5 {[%emt 0:01:26]} Bxc5 {[%emt 0:00:21]} 40. Bxa6 {[%emt 0:00:08]} Kf5 {[%emt 0:00:12]} 41. Bb7 {[%emt 0:30:43]} Ke5 {[%emt 0:30:51]} 42. Bc6 {[%emt 0:00:31]} Kd6 {[%emt 0:00:29]} 43. a4 {[%emt 0:00:11]} Bd4 {[%emt 0:00:11]} 44. Kg3 {[%emt 0:00:09]} Bc5 {[%emt 0:00:20]} 45. f4 {[%emt 0:00:26]} Bd4 {[%emt 0:00:14]} 46. Kf3 {[%emt 0:00:10]} Bc3 {[%emt 0:00:17]} 47. Ke4 {[%emt 0:00:08]} Bb2 {[%emt 0:00:08]} 48. Kf5 {[%emt 0:00:35]} 1/2-1/2

[Event "DVM U14 2024"]
[Site "Heidelberg"]
[Date "2024.12.27"]
[Round "1"]
[White "Kommessin, Felix"]
[Black "Haertel, Leon"]
[Result "0-1"]
[ECO "B21"]
[WhiteElo "1757"]
[BlackElo "1839"]
[Annotator "NA RC"]
[PlyCount "60"]
[EventDate "2024.12.23"]
[EventType "team-tourn"]
[EventRounds "7"]
[EventCountry "GER"]
[SourceTitle "playchess.com"]
[Source "ChessBase"]
[SourceQuality "1"]
[TimeControl "40/5400+30:1800+30"]

1. e4 {[%emt 0:00:03]} c5 {[%emt 0:00:05]} 2. d4 {[%emt 0:00:05]} cxd4 {[%emt 0:00:21]} 3. c3 {[%emt 0:00:06]} dxc3 {[%emt 0:00:07]} 4. Nxc3 {[%emt 0:00:06]} Nc6 {[%emt 0:00:13]} 5. Nf3 {[%emt 0:00:08]} e6 {[%emt 0:00:28]} 6. Bc4 {[%emt 0:00:07]} a6 {[%emt 0:00:22]} 7. Bf4 {[%emt 0:00:35]} d6 {[%emt 0:00:27]} 8. O-O {[%emt 0:01:30]} Be7 {[%emt 0:03:12]} 9. Qe2 {[%emt 0:01:01]} e5 {[%emt 0:03:24]} 10. Be3 {[%emt 0:09:33]} Nf6 {[%emt 0:08:29]} 11. Rfd1 {[%emt 0:07:26]} Bg4 {[%emt 0:12:43]} 12. h3 {[%emt 0:04:51]} Bxf3 {[%emt 0:09:45]} 13. Qxf3 {[%emt 0:00:28]} O-O {[%emt 0:02:51]} 14. Nd5 {[%emt 0:01:42]} Nxd5 {[%emt 0:05:06]} 15. Bxd5 {[%emt 0:01:48]} Rc8 {[%emt 0:10:55]} 16. g3 {[%emt 0:03:53]} Qd7 {[%emt 0:03:50]} 17. Kh2 {[%emt 0:00:28]} Kh8 {[%emt 0:00:41]} 18. g4 {[%emt 0:01:27]} Nb4 {[%emt 0:03:55]} 19. Bb3 {[%emt 0:03:33]} Nc2 {[%emt 0:01:47]} 20. Rac1 {[%emt 0:01:14]} Nxe3 {[%emt 0:00:18]} 21. Qxe3 {[%emt 0:00:15]} h6 {[%emt 0:07:24]} 22. Qb6 {[%emt 0:07:42]} h5 {[%emt 0:06:05]} 23. Kg3 {[%emt 0:12:54]} Rc6 {[%emt 0:11:42]} 24. Rxc6 {[%emt 0:03:56]} bxc6 {[%emt 0:00:09]} 25. Ba4 {[%emt 0:11:12]} Qe6 {[%emt 0:01:49]} 26. Bb3 {[%emt 0:00:09]} Qf6 {[%emt 0:00:19]} 27. f3 {[%emt 0:01:13]} Qf4+ {[%emt 0:01:08]} 28. Kf2 {[%emt 0:05:43]} Qh2+ {[%emt 0:01:52]} 29. Kf1 {[%emt 0:01:25]} Qxh3+ {[%emt 0:01:05]} 30. Ke2 {[%emt 0:00:10]} hxg4 {[%emt 0:00:32]} 0-1

[Event "DVM U14 2024"]
[Site "Heidelberg"]
[Date "2024.12.27"]
[Round "1"]
[White "Dersewski, Jonas"]
[Black "Schriefer, Leo Hans"]
[Result "0-1"]
[ECO "B06"]
[WhiteElo "1738"]
[BlackElo "1477"]
[Annotator "NA RC"]
[PlyCount "44"]
[EventDate "2024.12.23"]
[EventType "team-tourn"]
[EventRounds "7"]
[EventCountry "GER"]
[SourceTitle "playchess.com"]
[Source "ChessBase"]
[SourceQuality "1"]
[TimeControl "40/5400+30:1800+30"]

1. e4 {[%emt 0:00:03]} c5 {[%emt 0:00:30]} 2. c3 {[%emt 0:00:24]} d5 {[%emt 0:00:46]} 3. exd5 {[%emt 0:00:13]} Qxd5 {[%emt 0:00:03]} 4. d4 {[%emt 0:00:13]} g6 {[%emt 0:00:06]} 5. Nf3 {[%emt 0:01:13]} Bg7 {[%emt 0:02:01]} 6. Be3 {[%emt 0:01:32]} cxd4 {[%emt 0:02:36]} 7. cxd4 {[%emt 0:00:18]} Nf6 {[%emt 0:00:58]} 8. Nc3 {[%emt 0:00:57]} Qa5 {[%emt 0:01:34]} 9. Bd3 {[%emt 0:13:39]} O-O {[%emt 0:02:15]} 10. O-O {[%emt 0:00:55]} Nc6 {[%emt 0:01:18]} 11. Qd2 {[%emt 0:05:40]} Rd8 {[%emt 0:04:27]} 12. Rad1 {[%emt 0:13:02]} Nd5 {[%emt 0:27:42]} 13. Rfe1 {[%emt 0:20:48]} Be6 {[%emt 0:06:40]} 14. a3 {[%emt 0:07:23]} Rac8 {[%emt 0:01:13]} 15. Ne4 {[%emt 0:04:23]} Qxd2 {[%emt 0:04:50]} 16. Rxd2 {[%emt 0:00:22]} f5 {[%emt 0:00:59]} 17. Nc5 {[%emt 0:01:02]} Bf7 {[%emt 0:00:43]} 18. g3 {[%emt 0:06:30]} Nxe3 {[%emt 0:02:45]} 19. fxe3 {[%emt 0:00:38]} b6 {[%emt 0:01:02]} 20. Na4 {[%emt 0:01:24]} e5 {[%emt 0:02:15]} 21. Nxe5 {[%emt 0:02:46]} Bxe5 {[%emt 0:00:41]} 22. dxe5 {[%emt 0:01:52]} Nxe5 {[%emt 0:00:04]} 0-1

[Event "DVM U14 2024"]
[Site "Heidelberg"]
[Date "2024.12.27"]
[Round "1"]
[White "Gorbatschow, Bogdan"]
[Black "Zhou, Louis Yuchen"]
[Result "1-0"]
[ECO "C56"]
[WhiteElo "1728"]
[BlackElo "1215"]
[Annotator "NA RC"]
[PlyCount "43"]
[EventDate "2024.12.23"]
[EventType "team-tourn"]
[EventRounds "7"]
[EventCountry "GER"]
[SourceTitle "playchess.com"]
[Source "ChessBase"]
[SourceQuality "1"]
[TimeControl "40/5400+30:1800+30"]

1. e4 {[%emt 0:00:07]} e5 {[%emt 0:00:05]} 2. Nf3 {[%emt 0:00:05]} Nc6 {[%emt 0:00:06]} 3. d4 {[%emt 0:00:42]} exd4 {[%emt 0:00:27]} 4. Bc4 {[%emt 0:00:23]} Nf6 {[%emt 0:01:16]} 5. Ng5 {[%emt 0:02:23]} Ne5 {[%emt 0:01:35]} 6. Qxd4 {[%emt 0:00:11]} Nxc4 {[%emt 0:02:55]} 7. Qxc4 {[%emt 0:00:08]} d5 {[%emt 0:04:03]} 8. exd5 {[%emt 0:01:47]} Bd6 {[%emt 0:01:38]} 9. Nc3 {[%emt 0:05:41]} Bf5 {[%emt 0:01:36]} 10. O-O {[%emt 0:04:55]} O-O {[%emt 0:05:52]} 11. Qb3 {[%emt 0:05:41]} b6 {[%emt 0:05:06]} 12. Nf3 {[%emt 0:05:55]} Re8 {[%emt 0:02:12]} 13. Bg5 {[%emt 0:02:50]} h6 {[%emt 0:00:41]} 14. Nd4 {[%emt 0:04:09]} Bg4 {[%emt 0:03:06]} 15. Nc6 {[%emt 0:03:03]} Qd7 {[%emt 0:00:23]} 16. Bxf6 {[%emt 0:00:28]} gxf6 {[%emt 0:00:19]} 17. Rae1 {[%emt 0:04:33]} Bh3 {[%emt 0:01:27]} 18. Ne4 {[%emt 0:01:31]} Be5 {[%emt 0:06:31]} 19. Nxe5 {[%emt 0:03:27]} Qf5 {[%emt 0:00:35]} 20. Qxh3 {[%emt 0:02:15]} Qxh3 {[%emt 0:00:17]} 21. gxh3 {[%emt 0:00:16]} Rxe5 {[%emt 0:00:40]} 22. Nxf6+ {[%emt 0:00:11]} 1-0